fUST/lending_fUST_20250825
["ID","MTS","AMOUNT","RATE_DAILY","PERIOD"]
[381148509,1756080548161,-151.71737289,0.000306,2]
[381148510,1756080548182,-151.58149188,0.00030782,2]
[381148511,1756080548204,-326.0,0.0003081,2]
[381148512,1756080548225,-1045.0,0.0003081,2]
[381148513,1756080548246,-400.0,0.0003081,2]
[381148514,1756080548266,-400.0,0.00030811,2]
[381148515,1756080548286,-231.0,0.00030811,2]
[381148516,1756080548305,-4135.41412228,0.00030812,4]
[381148517,1756080548326,-6034.6294447,0.00030827,2]
[381148518,1756080548358,-258.05013724,0.00031123,15]
[381148519,1756080548379,-376.22310801,0.00031197,2]
[381148520,1756080548407,-258.05013725,0.00032849,19]
[381148521,1756080548434,-258.05013724,0.00032849,19]
[381148522,1756080548454,-162.782498,0.00033165,2]
[381148523,1756080548474,-560.0,0.00033179,2]
[381148524,1756080548495,-200.0,0.00033457,120]
[381148525,1756080548524,-258.05013724,0.00034576,23]
[381148526,1756080548545,-160.0,0.00035729,2]
[381148527,1756080548572,-258.05013724,0.00036302,26]
[381148528,1756080548594,-1000.0,0.00036387,30]
[381148529,1756080548617,-200.0,0.00036823,120]
[381148530,1756080548638,-200.0,0.00036925,120]
[381148531,1756080548658,-300.58746429,0.00038,120]
[381148532,1756080548684,-258.05013724,0.00038029,30]
[381148533,1756080548706,-162.782498,0.00039654,2]
[381148534,1756080548734,-258.05013724,0.00039755,34]
[381148535,1756080548756,-200.0,0.0003998,120]
[381148536,1756080548777,-380.0,0.00040629,120]
[381148537,1756080548798,-160.0,0.0004072,2]
[381148538,1756080548822,-10000.0,0.00040797,2]
[381148539,1756080548852,-258.05013724,0.00041482,37]
[381148540,1756080548880,-258.05013724,0.00043208,41]
[381148541,1756080571689,190.98155373,0.00033904,120]
[381148542,1756080571710,9.01844627,0.00033904,120]
[381148543,1756080588970,280.68886576,0.00020763,2]
[381148544,1756080589019,280.68886576,0.0002249,2]
[381148545,1756080589062,280.68886576,0.00024216,2]
[381148546,1756080589093,210.51664949,0.00025943,4]
[381148547,1756080622696,4058.4513029,0.00043652,2]
[381148548,1756080622718,1.2115292,0.00043652,2]
[381148557,1756080631839,-250.0,0.00030827,10]
[381148559,1756080631848,-200.0,0.00044709,120]
[381148560,1756080631858,-162.782498,0.00046143,2]
[381148561,1756080631868,-636.16497065,0.00046574,5]
[381148562,1756080631880,-296.83502935,0.00046574,5]
[381148563,1756080631889,-6612.93,0.00046575,120]
[381148564,1756080631899,-300.0,0.00046575,120]
[381148565,1756080631919,-168.0,0.00046617,7]
[381148566,1756080631929,-168.0,0.00046638,2]
[381148567,1756080631939,-500.0,0.00046979,30]
[381148569,1756080631948,-200.0,0.00047329,120]
[381148571,1756080631957,-1451.68774604,0.00047407,120]
[381148574,1756080631967,-168.0,0.00047542,7]
[381148575,1756080631976,-200.0,0.00048099,120]
[381148576,1756080631986,-168.0,0.00048198,2]
[381148577,1756080631995,-722.49111478,0.0004848,28]
[381148578,1756080632004,-305.68833809,0.00048492,2]
[381148579,1756080632013,-160.0,0.0004854,2]
[381148580,1756080632023,-215.99145658,0.0004854,2]
[381148581,1756080632032,-305.68833809,0.00048544,2]
[381148582,1756080632042,-506.25103804,0.00048568,2]
[381148583,1756080632051,-382.54,0.00048579,10]
[381148584,1756080632060,-2114.6773585,0.00048579,4]
[381148585,1756080632072,-13960.5743754,0.00048579,4]
[381148586,1756080632081,-32150.5034677,0.0004858,4]
[381148587,1756080632091,-600.24853587,0.00048587,2]
[381148588,1756080632100,-3487.76697516,0.00048588,120]
[381148778,1756080637864,-379.30919828,0.00046575,120]
[381148780,1756080637874,-318.78,0.00048579,10]
[381148782,1756080637887,-500.82891046,0.00048579,120]
[381148784,1756080637904,-500.0,0.00048579,120]
[381148786,1756080637914,-500.0,0.00048579,2]
[381148789,1756080637923,-500.0,0.00048579,31]
[381148791,1756080637935,-500.0,0.00048579,7]
[381148793,1756080637944,-500.0,0.00048579,120]
[381148794,1756080637956,-371.9642711,0.00048579,120]
[381148795,1756080637969,-540.89509835,0.00048579,2]
[381148796,1756080637978,-622.26786398,0.00048579,120]
[381148797,1756080637988,-500.0,0.00048579,7]
[381148798,1756080637997,-500.0,0.00048579,120]
[381148799,1756080638007,-500.0,0.00048579,7]
[381148800,1756080638016,-500.0,0.00048579,120]
[381148801,1756080638026,-500.0,0.00048579,7]
[381148802,1756080638036,-500.0,0.00048579,120]
[381148803,1756080638046,-500.0,0.00048579,7]
[381148804,1756080638055,-500.0,0.00048579,120]
[381148805,1756080638064,-500.0,0.00048579,120]
[381148806,1756080638074,-650.0,0.00048579,7]
[381148807,1756080638083,-500.0,0.00048579,120]
[381148808,1756080638093,-500.0,0.00048579,120]
[381148809,1756080638103,-3125.16302484,0.00048588,120]
[381148810,1756080638112,-2754.5077829,0.00048588,2]
[381148811,1756080638122,-16075.2517339,0.00048588,4]
[381148812,1756080638131,-301.14,0.00048589,30]
[381148813,1756080638141,-250.95,0.00048589,30]
[381148814,1756080638151,-209.13,0.00048589,30]
[381148815,1756080638160,-209.13,0.00048589,30]
[381148816,1756080638169,-836.52,0.00048589,30]
[381148817,1756080638179,-6612.93,0.00048589,120]
[381148818,1756080638187,-6612.93,0.00048589,120]
[381148819,1756080638196,-6612.93,0.00048589,120]
[381148820,1756080638206,-6612.93,0.00048589,120]
[381148821,1756080638215,-6612.93,0.00048589,120]
[381148822,1756080638225,-500.0,0.00048589,120]
[381148823,1756080638234,-500.0,0.00048589,120]
[381148824,1756080638244,-500.0,0.00048589,120]
[381148825,1756080638253,-500.0,0.00048589,120]
[381148826,1756080638262,-500.0,0.00048589,120]
[381148827,1756080638272,-500.0,0.00048589,120]
[381148828,1756080638281,-380.59568792,0.00048589,120]
[381148829,1756080638291,-28134.02400907,0.0004859,2]
[381148830,1756080638324,-1135.0,0.0004859,2]
[381148831,1756080638335,-4747.95634232,0.0004859,2]
[381148833,1756080639829,-250.0,0.0004859,2]
[381148834,1756080639841,-64093.9406544,0.0004859,2]
[381148835,1756080639850,-5905.8225609,0.00048593,2]
[381148836,1756080639860,-2583.8073805,0.00048593,2]
[381148838,1756080639869,-6089.4942482,0.00048593,2]
[381148840,1756080639879,-2413.04002702,0.00048595,2]
[381148847,1756080643034,-36.97109393,0.00048595,2]
[381148853,1756080645883,-411.74,0.00048595,2]
[381148854,1756080684412,5000.0,0.00032827,4]
[381148857,1756080757301,327.57551196,0.0002249,2]
[381148858,1756080757349,327.57551196,0.00024216,2]
[381148859,1756080757400,327.57551196,0.00025943,4]
[381148860,1756080757461,327.57551196,0.00027669,8]
[381148864,1756080929249,337.49115138,0.0002249,2]
[381148865,1756080929511,337.49115138,0.00027669,8]
[381148866,1756080929706,337.49115138,0.00024216,2]
[381148867,1756080930119,337.49115138,0.00025943,4]
[381148868,1756080963355,98500.0,0.00027,2]
[381148869,1756081045869,164.869781,0.00013699,2]
[381148870,1756081046141,164.869781,0.00020548,2]
[381148871,1756081046373,164.869781,0.00027397,2]
[381148872,1756081098897,294.30476964,0.0002249,2]
[381148873,1756081098956,294.30476964,0.00025943,4]
[381148874,1756081099745,294.30476964,0.00024216,2]
[381148875,1756081099791,294.30476964,0.00027669,8]
[381148876,1756081109344,9320.99635192,0.000279,7]
[381148878,1756081266928,213.94232137,0.000199,2]
[381148879,1756081278475,213.94232117,0.00023353,2]
[381148880,1756081279750,213.94232117,0.0002508,2]
[381148881,1756081433689,214.69245082,0.000199,2]
[381148882,1756081434371,214.69245062,0.00021627,2]
[381148883,1756081434422,214.69245062,0.00023353,2]
[381148884,1756081434510,214.69245062,0.00026806,6]
[381148885,1756081434817,214.69245062,0.0002508,2]
[381148886,1756081528992,357.54769433,0.00025036,2]
[381148887,1756081547600,161.91927347,0.00026,120]
[381148888,1756081567164,277.0,0.00030836,120]
[381148889,1756081575022,277.0,0.00030836,120]
[381148890,1756081592669,277.0,0.00030836,120]
[381148891,1756081609684,200.31659173,0.000199,2]
[381148892,1756081609942,200.31659171,0.00023353,2]
[381148893,1756081610247,200.31659171,0.00026806,6]
[381148894,1756081610299,200.31659171,0.00021627,2]
[381148895,1756081713422,6319.95114102,0.00025,2]
[381148896,1756081718049,4047.42781095,0.00025,2]
[381148897,1756081726571,15030.84134311,0.00030836,30]
[381148898,1756081748322,-300.0,0.00024999,2]
[381148899,1756081748343,-1951.34513231,0.00025,2]
[381148900,1756081748364,-4780.0,0.00025,2]
[381148901,1756081748385,-163.99742636,0.000278,2]
[381148902,1756081748405,-1177.21907856,0.000279,7]
[381148903,1756081748430,-200.31659171,0.00028533,10]
[381148904,1756081748449,-233.468041,0.00028781,2]
[381148905,1756081748474,-200.31659171,0.00030259,13]
[381148906,1756081748495,-200.0,0.00030317,120]
[381148907,1756081748514,-453.68345598,0.00030682,26]
[381148908,1756081748533,-163.99742636,0.00030735,2]
[381148909,1756081748551,-536.19875584,0.00030736,2]
[381148910,1756081748570,-193.59978248,0.00030736,2]
[381148911,1756081748592,-1000.55433446,0.00030835,2]
[381148912,1756081748612,-500.0,0.00030835,2]
[381148913,1756081748632,-500.0,0.00030835,2]
[381148914,1756081748652,-500.0,0.00030835,2]
[381148915,1756081748672,-538.6864469,0.00030835,2]
[381148916,1756081748693,-210.99188314,0.00030835,2]
[381148917,1756081748714,-500.0,0.00030835,2]
[381148918,1756081748738,-500.0,0.00030835,2]
[381148919,1756081748758,-500.0,0.00030835,2]
[381148920,1756081748779,-500.0,0.00030835,2]
[381148921,1756081748799,-500.0,0.00030835,2]
[381148922,1756081748820,-500.0,0.00030835,2]
[381148923,1756081748840,-500.0,0.00030835,2]
[381148924,1756081748860,-500.0,0.00030835,2]
[381148925,1756081748880,-500.0,0.00030835,2]
[381148926,1756081748900,-500.0,0.00030835,2]
[381148927,1756081748922,-500.0,0.00030835,2]
[381148928,1756081748943,-500.0,0.00030835,2]
[381148929,1756081748964,-500.0,0.00030835,2]
[381148930,1756081748989,-500.0,0.00030835,2]
[381148931,1756081749010,-516.07269851,0.00030835,2]
[381148932,1756081749030,-500.0,0.00030835,2]
[381148933,1756081749050,-500.82891046,0.00030835,2]
[381148934,1756081749072,-500.0,0.00030835,2]
[381148935,1756081749093,-348.15129209,0.00030835,2]
[381148936,1756081749115,-75.14746413,0.00030835,2]
[381148937,1756081751136,-382.78293292,0.00030736,2]
[381148938,1756081751159,-2012.07,0.00030826,10]
[381148939,1756081751180,-424.85253587,0.00030835,2]
[381148940,1756081751201,-500.0,0.00030835,2]
[381148941,1756081751221,-500.0,0.00030835,2]
[381148942,1756081751243,-500.0,0.00030835,2]
[381148943,1756081751263,-500.0,0.00030835,2]
[381148944,1756081751283,-500.0,0.00030835,2]
[381148945,1756081751304,-336.80558851,0.00030835,2]
[381148946,1756081751324,-500.0,0.00030835,2]
[381148947,1756081751346,-500.0,0.00030835,2]
[381148948,1756081751366,-500.0,0.00030835,2]
[381148949,1756081751388,-500.0,0.00030835,2]
[381148950,1756081751408,-500.0,0.00030835,2]
[381148951,1756081751429,-500.0,0.00030835,2]
[381148952,1756081751451,-500.0,0.00030835,2]
[381148953,1756081751472,-500.0,0.00030835,2]
[381148954,1756081751492,-500.0,0.00030835,2]
[381148955,1756081751512,-500.0,0.00030835,2]
[381148956,1756081751532,-500.0,0.00030835,2]
[381148957,1756081751553,-500.0,0.00030835,2]
[381148958,1756081751574,-500.0,0.00030835,2]
[381148959,1756081751594,-500.0,0.00030835,2]
[381148960,1756081751613,-500.0,0.00030835,2]
[381148961,1756081751634,-319.64746197,0.00030835,2]
[381148962,1756081751654,-600.0,0.00030835,2]
[381148963,1756081751673,-1956.20171857,0.00030835,2]
[381148964,1756081751695,-7999.75,0.000309,7]
[381148965,1756081751714,-4334.68,0.000309,2]
[381148966,1756081751736,-169.08,0.000309,7]
[381148967,1756081751756,-156.0,0.00031,120]
[381148968,1756081751776,-200.0,0.00031862,120]
[381148969,1756081751795,-583.61056563,0.00031986,2]
[381148970,1756081751823,-200.31659171,0.00031986,17]
[381148971,1756081751847,-200.31659171,0.00033712,21]
[381148972,1756081751867,-164.869781,0.00034247,2]
[381148973,1756081751888,-200.0,0.00034307,120]
[381148974,1756081751909,-200.0,0.00034529,120]
[381148975,1756081751930,-376.22310801,0.00034556,2]
[381148976,1756081751955,-1600.0,0.00034564,3]
[381148977,1756081751975,-1600.0,0.00034566,3]
[381148978,1756081751994,-500.0,0.00034567,5]
[381148979,1756081752013,-500.0,0.00034567,5]
[381148980,1756081752044,-844.67759735,0.0003526,7]
[381148981,1756081752068,-214.5286166,0.00035287,7]
[381148982,1756081752094,-200.31659171,0.00035439,24]
[381148983,1756081752113,-500.0,0.0003579,5]
[381148984,1756081752133,-156.0,0.000367,120]
[381148985,1756081752153,-977.0,0.00037079,3]
[381148986,1756081752175,-4334.68,0.000371,14]
[381148987,1756081752206,-200.31659171,0.00037166,28]
[381148988,1756081752228,-7999.75,0.000372,14]
[381148989,1756081752251,-319.0,0.00037225,3]
[381148990,1756081752276,-200.31659171,0.00038892,32]
[381148991,1756081752296,-666.0,0.00039205,2]
[381148992,1756081752316,-157.710129,0.00039896,2]
[381148993,1756081752336,-1000.0,0.0003998,30]
[381148994,1756081752356,-200.0,0.00040469,120]
[381148995,1756081752381,-200.31659171,0.00040619,36]
[381148996,1756081752401,-1097.196196,0.00040783,120]
[381148997,1756081752622,-200.0,0.00041,120]
[381148998,1756081752650,-164.869781,0.00041096,2]
[381148999,1756081752672,-4334.68,0.000411,14]
[381149000,1756081752693,-156.0,0.000423,120]
[381149001,1756081752717,-200.31659171,0.00042345,39]
[381149002,1756081752739,-191.8638464,0.000424,14]
[381149003,1756081762191,-199.0,0.000309,120]
[381149004,1756081762212,-160.0,0.00031224,2]
[381149005,1756081762233,-382.78293292,0.00035124,2]
[381149006,1756081762252,-382.78293292,0.00039513,2]
[381149007,1756081762272,-7807.8861536,0.000424,14]
[381149008,1756081762291,-233.468041,0.00043171,2]
[381149009,1756081762311,-157.710129,0.0004332,2]
[381149010,1756081762331,-160.0,0.00043882,3]
[381149011,1756081762353,-382.78293292,0.00043901,2]
[381149012,1756081762378,-200.31659171,0.00044072,43]
[381149013,1756081763154,1676.72,0.00030826,10]
[381149014,1756081766359,199.0,0.000308,120]
[381149015,1756081769070,199.0,0.000308,120]
[381149016,1756081775298,2901.77383651,0.00030195,2]
[381149017,1756081775322,4150.59471639,0.00030195,2]
[381149018,1756081775924,397.47173796,0.0002249,2]
[381149019,1756081775970,397.47173796,0.00036302,26]
[381149020,1756081776003,226.33585772,0.00032849,19]
[381149021,1756081776327,397.47173796,0.00025943,4]
[381149022,1756081776965,-397.47173796,0.00024216,2]
[381149062,1756081832314,-397.47173796,0.00027669,8]
[381149063,1756081832323,-397.47173796,0.00029396,11]
[381149064,1756081832333,-5918.79323049,0.00030736,2]
[381149065,1756081832343,-1397.27,0.00030826,10]
[381149066,1756081832352,-1164.39,0.00030826,10]
[381149067,1756081832361,-193785.571334,0.00030836,20]
[381149068,1756081832372,-417.88717517,0.00030836,20]
[381149069,1756081832383,-1359.87872435,0.00030836,20]
[381149070,1756081832394,-502.11282483,0.00030836,20]
[381149105,1756081832777,-1032.61708873,0.00030836,20]
[381149106,1756081832805,-19431.13853117,0.00030836,20]
[381149107,1756081832817,-57006.1978901,0.00030836,20]
[381149240,1756081837800,-199.0,0.00030726,10]
[381149241,1756081837810,-978.10085928,0.00030835,2]
[381149242,1756081837820,-328643.90857022,0.00030836,20]
[381149244,1756081837831,-311.52527739,0.00030836,2]
[381149246,1756081837840,-380.78572021,0.00030836,5]
[381149248,1756081837850,-9028.29,0.000309,7]
[381149250,1756081837859,-2956.45,0.000309,7]
[381149252,1756081837869,-397.47173796,0.00031123,15]
[381149254,1756081837879,-171.13588024,0.00032849,19]
[381149256,1756081837888,-397.47173808,0.00032849,19]
[381149258,1756081837897,-397.47173796,0.00034576,23]
[381149260,1756081837907,-19951.4903301,0.00036625,2]
[381149261,1756081837916,-151.0,0.000378,16]
[381149262,1756081837926,-397.47173796,0.00038029,30]
[381149264,1756081837935,-151.0,0.000396,20]
[381149266,1756081837944,-5918.79323047,0.00039612,2]
[381149268,1756081837954,-397.47173796,0.00039755,34]
[381149269,1756081837963,-151.0,0.000413,16]
[381149270,1756081837972,-397.47173796,0.00041482,37]
[381149271,1756081837981,-4451.7792325,0.00042904,2]
[381149272,1756081837991,-151.0,0.000431,19]
[381149273,1756081838000,-397.47173796,0.00043208,41]
[381149274,1756081838009,-993.3262131,0.00044305,2]
[381149275,1756081838019,-151.0,0.000449,19]
[381149277,1756081838028,-397.47173796,0.00044935,45]
[381149279,1756081838038,-5000.07,0.00045,120]
[381149280,1756081838047,-9028.29,0.00045,14]
[381149281,1756081838056,-2956.45,0.00045,7]
[381149282,1756081838065,-647.66914228,0.00045789,8]
[381149283,1756081838075,-300.0,0.00045833,60]
[381149284,1756081838085,-160.0,0.00046237,4]
[381149285,1756081838094,-2543.999999,0.0004648,120]
[381149286,1756081838103,-154.229761,0.00046556,20]
[381149287,1756081838112,-300.0,0.00046575,120]
[381149288,1756081838121,-151.0,0.000466,22]
[381149289,1756081838130,-157.710129,0.00046745,2]
[381149290,1756081838140,-156.957592,0.00046814,2]
[381149291,1756081838149,-1919.88184693,0.00046847,120]
[381149292,1756081838159,-500.0,0.0004693,30]
[381149293,1756081838168,-4334.68,0.00047,14]
[381149294,1756081838178,-500.0,0.00047547,30]
[381149295,1756081838187,-500.0,0.0004756,30]
[381149296,1756081838196,-500.0,0.00047601,30]
[381149297,1756081838206,-500.0,0.0004767,60]
[381149298,1756081838217,-500.0,0.00047757,30]
[381149299,1756081838229,-7011.29,0.00047944,120]
[381149300,1756081838243,-529.17068775,0.00047944,120]
[381149301,1756081838252,-164.869781,0.00047945,2]
[381149302,1756081838264,-21665.24657609,0.00047999,120]
[381149303,1756081838274,-157.0,0.00048,90]
[381149304,1756081838283,-157.0,0.00048,60]
[381149305,1756081838293,-160.0,0.00048,45]
[381149306,1756081838303,-156.0,0.00048,120]
[381149307,1756081838312,-157.0,0.00048,90]
[381149308,1756081838322,-255.40044073,0.00048051,2]
[381149309,1756081838331,-194.47307488,0.00048137,120]
[381149310,1756081838340,-9028.29,0.000482,14]
[381149311,1756081838349,-2956.45,0.000482,7]
[381149312,1756081838359,-870.63655138,0.00048239,28]
[381149313,1756081838369,-300.0,0.00048271,2]
[381149314,1756081838379,-300.0,0.00048271,2]
[381149315,1756081838388,-500.0,0.00048271,2]
[381149316,1756081838397,-251.06713902,0.00048271,2]
[381149317,1756081838407,-500.0,0.00048271,2]
[381149318,1756081838416,-259.01513167,0.00048271,2]
[381149319,1756081838425,-500.0,0.00048271,2]
[381149320,1756081838435,-500.0,0.00048271,2]
[381149321,1756081838444,-500.0,0.00048271,2]
[381149322,1756081838452,-500.0,0.00048271,2]
[381149323,1756081838461,-500.0,0.00048271,2]
[381149324,1756081838471,-500.0,0.00048271,2]
[381149325,1756081838480,-500.0,0.00048271,2]
[381149326,1756081838489,-609.28560606,0.00048271,2]
[381149327,1756081838498,-735.07261176,0.00048271,2]
[381149328,1756081838508,-250.0,0.00048271,2]
[381149329,1756081838518,-151.0,0.00048271,2]
[381149330,1756081838527,-250.0,0.00048271,2]
[381149331,1756081838536,-250.0,0.00048271,2]
[381149332,1756081838546,-250.0,0.00048271,2]
[381149333,1756081838555,-250.0,0.00048271,2]
[381149334,1756081838564,-151.0,0.00048271,2]
[381149335,1756081838573,-250.0,0.00048271,2]
[381149336,1756081838582,-151.0,0.00048271,2]
[381149337,1756081838592,-250.0,0.00048271,2]
[381149338,1756081838602,-217.31665274,0.00048271,2]
[381149339,1756081838611,-250.0,0.00048271,2]
[381149340,1756081838621,-250.0,0.00048271,2]
[381149341,1756081838630,-250.0,0.00048271,2]
[381149342,1756081838639,-250.0,0.00048271,2]
[381149343,1756081838649,-160.0,0.00048284,2]
[381149344,1756081838659,-215.99145658,0.00048284,2]
[381149345,1756081838668,-382.78293292,0.00048289,2]
[381149346,1756081838678,-1000000.0,0.000483,120]
[381149347,1756081838687,-278.89879357,0.00048373,7]
[381149348,1756081838698,-500.0,0.00048373,10]
[381149349,1756081838708,-500.06002785,0.00048373,10]
[381149350,1756081838718,-500.0,0.00048373,10]
[381149351,1756081838727,-500.0,0.00048373,10]
[381149352,1756081838736,-500.0,0.00048373,10]
[381149353,1756081838746,-160.0,0.00048374,2]
[381149354,1756081838756,-7011.29,0.00048379,120]
[381149355,1756081838766,-201010.42,0.0004838,120]
[381149356,1756081838776,-151.0,0.0004838,120]
[381149357,1756081838787,-151.0,0.0004838,120]
[381149358,1756081838798,-151.0,0.0004838,120]
[381149359,1756081838807,-151.0,0.0004838,120]
[381149360,1756081838816,-151.0,0.0004838,120]
[381149361,1756081838827,-151.0,0.0004838,120]
[381149362,1756081838836,-61718.5947414,0.0004838,4]
[381149363,1756081838845,-7675.72100964,0.00048388,2]
[381149364,1756081838855,-61718.5947414,0.00048389,4]
[381149365,1756081838865,-301.14,0.00048389,30]
[381149366,1756081838874,-250.95,0.00048389,30]
[381149367,1756081838884,-209.13,0.00048389,30]
[381149368,1756081838894,-174.27,0.00048389,30]
[381149369,1756081838903,-871.38,0.00048389,30]
[381149370,1756081838912,-500.0,0.00048389,120]
[381149371,1756081838921,-7011.29,0.00048389,120]
[381149372,1756081838931,-7011.29,0.00048389,120]
[381149373,1756081838940,-7011.29,0.00048389,120]
[381149374,1756081838949,-7011.29,0.00048389,120]
[381149375,1756081838958,-7011.29,0.00048389,120]
[381149376,1756081838967,-88207.36426134,0.0004839,4]
[381149377,1756081838981,-35229.82522166,0.0004839,4]
[381149378,1756081838990,-151.0,0.0004839,120]
[381149379,1756081838999,-151.0,0.0004839,120]
[381149380,1756081839010,-151.0,0.0004839,120]
[381149381,1756081839019,-151.45715,0.0004839,120]
[381149382,1756081839028,-151.0,0.0004839,120]
[381149383,1756081839037,-151.0,0.00048399,120]
[381149384,1756081839047,-630.704233,0.00048399,30]
[381149385,1756081839056,-630.704233,0.00048399,30]
[381149386,1756081839066,-151.0,0.00048399,120]
[381149387,1756081839075,-630.704233,0.00048399,30]
[381149388,1756081839086,-152.362666,0.00048399,120]
[381149389,1756081839095,-630.704233,0.00048399,30]
[381149390,1756081839105,-151.0,0.00048399,120]
[381149391,1756081839127,-151.0,0.00048399,120]
[381149392,1756081839136,-193.179097,0.00048399,120]
[381149393,1756081839145,-151.0,0.00048399,120]
[381149394,1756081839155,-151.0,0.00048399,120]
[381149395,1756081839164,-151.0,0.00048399,120]
[381149396,1756081839172,-269.512267,0.00048399,15]
[381149397,1756081839182,-269.512267,0.00048399,15]
[381149398,1756081839191,-269.512267,0.00048399,15]
[381149399,1756081839200,-269.512267,0.00048399,15]
[381149400,1756081839209,-7011.29,0.00048399,120]
[381149401,1756081839219,-7011.29,0.00048399,120]
[381149402,1756081839232,-7011.29,0.00048399,120]
[381149403,1756081839243,-7011.29,0.00048399,120]
[381149404,1756081839252,-7011.29,0.00048399,120]
[381149405,1756081839262,-7011.29,0.00048399,120]
[381149406,1756081839272,-7011.29,0.00048399,120]
[381149407,1756081839281,-7011.29,0.00048399,120]
[381149408,1756081839291,-2646.09744614,0.00048399,120]
[381149409,1756081839324,-4365.19255386,0.00048399,120]
[381149410,1756081839334,-5794.53161374,0.00048399,120]
[381149432,1756081840068,-1216.75838626,0.00048399,120]
[381149433,1756081840078,-284.24196,0.00048399,120]
[381149434,1756081840088,-151.0,0.00048399,120]
[381149435,1756081840097,-151.0,0.00048399,120]
[381149436,1756081840106,-104.30965374,0.00048399,120]
[381149470,1756081843958,-434.1,0.00047944,120]
[381149475,1756081845631,199.0,0.00026749,20]
[381149484,1756081846026,-10985.38928058,0.00047944,120]
[381149485,1756081846036,-46.69034626,0.00048399,120]
[381149486,1756081846046,-151.0,0.00048399,120]
[381149487,1756081846058,-151.0,0.00048399,120]
[381149488,1756081846068,-151.0,0.00048399,120]
[381149489,1756081846079,-569.586279,0.00048399,120]
[381149490,1756081846091,-569.586279,0.00048399,120]
[381149491,1756081846102,-569.586279,0.00048399,120]
[381149492,1756081846113,-1524.971323,0.00048399,120]
[381149493,1756081846124,-569.586279,0.00048399,120]
[381149494,1756081846136,-1524.971323,0.00048399,120]
[381149495,1756081846147,-1524.971323,0.00048399,120]
[381149496,1756081846157,-1524.971323,0.00048399,120]
[381149497,1756081846167,-151.0,0.000484,120]
[381149498,1756081846176,-151.0,0.000484,120]
[381149499,1756081846186,-151.407558,0.000484,120]
[381149500,1756081846197,-256.454979,0.000484,120]
[381149501,1756081846208,-151.0,0.000484,120]
[381149502,1756081846218,-151.0,0.000484,120]
[381149503,1756081846227,-151.0,0.000484,120]
[381149504,1756081846237,-256.454979,0.000484,120]
[381149505,1756081846247,-256.454979,0.000484,120]
[381149506,1756081846256,-256.454979,0.000484,120]
[381149507,1756081846268,-151.211758,0.000484,120]
[381149508,1756081846277,-151.0,0.000484,120]
[381149509,1756081846287,-151.0,0.000484,120]
[381149510,1756081846296,-151.0,0.000484,120]
[381149511,1756081846306,-151.0,0.000484,120]
[381149512,1756081846315,-151.0,0.000484,120]
[381149513,1756081846325,-151.0,0.000484,120]
[381149514,1756081846335,-348.433099,0.000484,120]
[381149515,1756081846344,-348.433099,0.000484,120]
[381149516,1756081846354,-348.433099,0.000484,120]
[381149517,1756081846364,-151.0,0.000484,120]
[381149518,1756081846373,-348.433099,0.000484,120]
[381149519,1756081846383,-630.704233,0.000484,30]
[381149520,1756081846392,-630.704233,0.000484,30]
[381149521,1756081846401,-151.0,0.000484,120]
[381149522,1756081846411,-630.704233,0.000484,30]
[381149523,1756081846421,-630.704233,0.000484,30]